[Event "13 Open de Quenza"]
[Site "Quenza, France"]
[Date "2024.07.07"]
[Round "8.5"]
[White "Yankelevich, Lev"]
[Black "Fedorchuk, Sergey A."]
[Result "0-1"]
[TimeControl "5min+3s/move"]
[WhiteElo "2416"]
[BlackElo "2554"]

1. d4 {[%clk 00:05:03]} {[%emt 00:14:05]} Nf6 {[%clk 00:05:03]} {[%emt
00:00:02]} 2. Nf3 {[%clk 00:04:55]} {[%emt 00:00:12]} e6 {[%clk 00:05:03]}
{[%emt 00:00:01]} 3. Bg5 {[%clk 00:04:55]} {[%emt 00:00:01]} h6 {[%clk
00:05:03]} {[%emt 00:00:04]} 4. Bh4 {[%clk 00:04:55]} {[%emt 00:00:01]} c5
{[%clk 00:04:48]} {[%emt 00:00:18]} 5. e3 {[%clk 00:04:52]} {[%emt 00:00:06]}
b6 {[%clk 00:04:39]} {[%emt 00:00:12]} 6. Nbd2 {[%clk 00:04:49]} {[%emt
00:00:05]} cxd4 {[%clk 00:04:33]} {[%emt 00:00:10]} 7. exd4 {[%clk 00:04:49]}
{[%emt 00:00:02]} Be7 {[%clk 00:04:33]} {[%emt 00:00:02]} 8. Be2 {[%clk
00:04:31]} {[%emt 00:00:21]} Ba6 {[%clk 00:04:17]} {[%emt 00:00:18]} 9. O-O
{[%clk 00:04:31]} {[%emt 00:00:03]} O-O {[%clk 00:04:13]} {[%emt 00:00:07]} 10.
Re1 {[%clk 00:04:27]} {[%emt 00:00:07]} Bxe2 {[%clk 00:04:00]} {[%emt
00:00:16]} 11. Qxe2 {[%clk 00:04:27]} {[%emt 00:00:02]} Nc6 {[%clk 00:03:57]}
{[%emt 00:00:06]} 12. c3 {[%clk 00:04:27]} {[%emt 00:00:03]} Nh5 {[%clk
00:03:32]} {[%emt 00:00:28]} 13. Bxe7 {[%clk 00:04:13]} {[%emt 00:00:17]} Nxe7
{[%clk 00:03:32]} {[%emt 00:00:01]} 14. Nc4 {[%clk 00:04:09]} {[%emt 00:00:08]}
Nf4 {[%clk 00:03:19]} {[%emt 00:00:15]} 15. Qd2 {[%clk 00:03:52]} {[%emt
00:00:20]} Nfg6 {[%clk 00:03:17]} {[%emt 00:00:06]} 16. Nfe5 {[%clk 00:03:46]}
{[%emt 00:00:09]} d6 {[%clk 00:03:11]} {[%emt 00:00:09]} 17. Nxg6 {[%clk
00:03:41]} {[%emt 00:00:08]} Nxg6 {[%clk 00:03:11]} {[%emt 00:00:01]} 18. Qe3
{[%clk 00:03:30]} {[%emt 00:00:14]} b5 {[%clk 00:03:01]} {[%emt 00:00:14]} 19.
Nd2 {[%clk 00:03:29]} {[%emt 00:00:04]} Qb6 {[%clk 00:02:24]} {[%emt 00:00:39]}
20. Ne4 {[%clk 00:03:14]} {[%emt 00:00:17]} Rad8 {[%clk 00:02:18]} {[%emt
00:00:09]} 21. Rad1 {[%clk 00:03:04]} {[%emt 00:00:13]} Ne7 {[%clk 00:01:47]}
{[%emt 00:00:34]} 22. Ng3 {[%clk 00:03:01]} {[%emt 00:00:07]} Qc6 {[%clk
00:01:39]} {[%emt 00:00:10]} 23. a3 {[%clk 00:02:42]} {[%emt 00:00:22]} Qd5
{[%clk 00:01:39]} {[%emt 00:00:03]} 24. Qd3 {[%clk 00:02:13]} {[%emt 00:00:32]}
Rd7 {[%clk 00:01:38]} {[%emt 00:00:04]} 25. Re4 {[%clk 00:02:13]} {[%emt
00:00:03]} Ng6 {[%clk 00:01:29]} {[%emt 00:00:12]} 26. Nf1 {[%clk 00:02:00]}
{[%emt 00:00:16]} Qg5 {[%clk 00:01:23]} {[%emt 00:00:09]} 27. Ng3 {[%clk
00:01:52]} {[%emt 00:00:10]} a6 {[%clk 00:00:53]} {[%emt 00:00:33]} 28. h3
{[%clk 00:01:52]} {[%emt 00:00:02]} Nf4 {[%clk 00:00:40]} {[%emt 00:00:15]} 29.
Qf3 {[%clk 00:01:49]} {[%emt 00:00:06]} Ng6 {[%clk 00:00:35]} {[%emt 00:00:08]}
30. Rg4 {[%clk 00:01:41]} {[%emt 00:00:11]} Qd8 {[%clk 00:00:35]} {[%emt
00:00:03]} 31. Nh5 {[%clk 00:01:35]} {[%emt 00:00:08]} Kh7 {[%clk 00:00:35]}
{[%emt 00:00:02]} 32. Qg3 {[%clk 00:01:34]} {[%emt 00:00:04]} Qe8 {[%clk
00:00:35]} {[%emt 00:00:04]} 33. Nf4 {[%clk 00:01:31]} {[%emt 00:00:06]} Nxf4
{[%clk 00:00:21]} {[%emt 00:00:17]} 34. Rxf4 {[%clk 00:01:20]} {[%emt
00:00:14]} f5 {[%clk 00:00:21]} 35. Qd3 {[%clk 00:01:11]} {[%emt 00:00:12]} Qg6
{[%clk 00:00:19]} {[%emt 00:00:05]} 36. Re1 {[%clk 00:01:11]} {[%emt 00:00:03]}
Re7 {[%clk 00:00:19]} 37. Rf3 {[%clk 00:01:11]} {[%emt 00:00:03]} e5 {[%clk
00:00:19]} {[%emt 00:00:03]} 38. Rg3 {[%clk 00:00:46]} {[%emt 00:00:28]} Qf6
{[%clk 00:00:19]} 39. dxe5 {[%clk 00:00:43]} {[%emt 00:00:07]} dxe5 {[%clk
00:00:19]} 40. Rge3 {[%clk 00:00:37]} {[%emt 00:00:09]} e4 {[%clk 00:00:19]}
{[%emt 00:00:02]} 41. Qd5 {[%clk 00:00:37]} {[%emt 00:00:02]} Re5 {[%clk
00:00:18]} {[%emt 00:00:05]} 42. Qb3 {[%clk 00:00:34]} {[%emt 00:00:06]} Rd8
{[%clk 00:00:15]} {[%emt 00:00:06]} 43. c4 {[%clk 00:00:30]} {[%emt 00:00:08]}
Rc5 {[%clk 00:00:14]} {[%emt 00:00:04]} 44. Rc3 {[%clk 00:00:25]} {[%emt
00:00:07]} Rdc8 {[%clk 00:00:11]} {[%emt 00:00:07]} 45. cxb5 {[%clk 00:00:14]}
{[%emt 00:00:14]} Rxc3 {[%clk 00:00:11]} 46. bxc3 {[%clk 00:00:14]} Rxc3 {[%clk
00:00:11]} 47. Qb4 {[%clk 00:00:14]} {[%emt 00:00:01]} axb5 {[%clk 00:00:11]}
48. Qxb5 {[%clk 00:00:14]} Rxa3 {[%clk 00:00:11]} 49. g3 {[%clk 00:00:12]}
{[%emt 00:00:04]} Rf3 {[%clk 00:00:11]} {[%emt 00:00:01]} 50. Qc5 {[%clk
00:00:12]} {[%emt 00:00:02]} Qg5 {[%clk 00:00:11]} {[%emt 00:00:03]} 51. Kg2
{[%clk 00:00:12]} {[%emt 00:00:03]} h5 {[%clk 00:00:10]} {[%emt 00:00:03]} 52.
h4 {[%clk 00:00:12]} {[%emt 00:00:01]} Qg4 {[%clk 00:00:10]} {[%emt 00:00:01]}
53. Re3 {[%clk 00:00:07]} {[%emt 00:00:08]} Rxe3 54. Qxe3 {[%clk 00:00:07]} Kg6
{[%clk 00:00:07]} {[%emt 00:00:04]} 55. Qb6+ {[%clk 00:00:07]} Kh7 {[%clk
00:00:07]} 56. Qe3 {[%clk 00:00:07]} Qd1 {[%clk 00:00:07]} {[%emt 00:00:02]} 57.
Qg5 {[%clk 00:00:07]} {[%emt 00:00:02]} Qf3+ {[%clk 00:00:07]} {[%emt
00:00:01]} 58. Kg1 {[%clk 00:00:07]} Qg4 {[%clk 00:00:05]} {[%emt 00:00:05]} 59.
Qe3 {[%clk 00:00:07]} {[%emt 00:00:02]} Qf3 {[%clk 00:00:05]} {[%emt 00:00:01]}
60. Qg5 {[%clk 00:00:07]} {[%emt 00:00:01]} Qd1+ {[%clk 00:00:05]} 61. Kg2
{[%clk 00:00:07]} {[%emt 00:00:03]} Qf3+ {[%clk 00:00:05]} 62. Kg1 {[%clk
00:00:07]} Qg4 {[%clk 00:00:05]} 63. Qe3 {[%clk 00:00:07]} {[%emt 00:00:02]}
Kg6 {[%clk 00:00:05]} {[%emt 00:00:02]} 64. Qb6+ {[%clk 00:00:07]} Kh7 {[%clk
00:00:05]} 65. Qe3 {[%clk 00:00:07]} {[%emt 00:00:02]} Qd1+ {[%clk 00:00:05]}
{[%emt 00:00:04]} 66. Kh2 {[%clk 00:00:07]} {[%emt 00:00:01]} Qf3 {[%clk
00:00:05]} {[%emt 00:00:02]} 67. Qg5 {[%clk 00:00:07]} Qxf2+ {[%emt 00:00:03]}
68. Kh1 {[%clk 00:00:07]} {[%emt 00:00:02]} Qf3+ {[%clk 00:00:05]} {[%emt
00:00:01]} 69. Kh2 {[%clk 00:00:07]} {[%emt 00:00:01]} Qe2+ {[%clk 00:00:05]}
70. Kg1 {[%clk 00:00:07]} {[%emt 00:00:03]} Qg4 {[%clk 00:00:05]} {[%emt
00:00:01]} 71. Qe3 {[%clk 00:00:07]} {[%emt 00:00:02]} Qf3 {[%clk 00:00:05]} 72.
Qg5 {[%clk 00:00:07]} e3 {[%clk 00:00:05]} 0-1

[Event "13 Open de Quenza"]
[Site "Quenza, France"]
[Date "2024.07.07"]
[Round "8.6"]
[White "Anwesh, Upadhyaya"]
[Black "Maze, Sebastien"]
[Result "0-1"]
[TimeControl "5min+3s/move"]
[WhiteElo "2363"]
[BlackElo "2553"]

1. d4 {[%clk 00:05:03]} {[%emt 00:00:01]} Nf6 {[%clk 00:05:03]} {[%emt
00:00:01]} 2. c4 {[%clk 00:05:03]} {[%emt 00:00:02]} g6 {[%clk 00:05:03]}
{[%emt 00:00:01]} 3. g3 {[%clk 00:05:03]} {[%emt 00:00:03]} Bg7 {[%clk
00:05:03]} 4. Bg2 {[%clk 00:05:03]} d6 {[%clk 00:05:03]} {[%emt 00:00:01]} 5.
Nf3 {[%clk 00:05:03]} {[%emt 00:00:02]} O-O {[%clk 00:05:03]} {[%emt 00:00:01]}
6. Nc3 {[%clk 00:05:03]} {[%emt 00:00:02]} Nbd7 {[%clk 00:05:03]} {[%emt
00:00:01]} 7. O-O {[%clk 00:05:03]} {[%emt 00:00:02]} e5 {[%clk 00:05:03]} 8.
e4 {[%clk 00:05:03]} {[%emt 00:00:02]} Re8 {[%clk 00:05:03]} 9. Re1 {[%clk
00:05:03]} {[%emt 00:00:03]} exd4 {[%clk 00:05:03]} {[%emt 00:00:02]} 10. Nxd4
{[%clk 00:05:03]} {[%emt 00:00:01]} Nc5 {[%clk 00:05:03]} {[%emt 00:00:02]} 11.
h3 {[%clk 00:05:03]} {[%emt 00:00:03]} a5 {[%clk 00:05:03]} 12. Ndb5 {[%clk
00:04:56]} {[%emt 00:00:11]} Bd7 {[%clk 00:04:56]} {[%emt 00:00:10]} 13. Kh2
{[%clk 00:04:52]} {[%emt 00:00:06]} Bc6 {[%clk 00:04:54]} {[%emt 00:00:06]} 14.
Qc2 {[%clk 00:04:38]} {[%emt 00:00:17]} h5 {[%clk 00:04:32]} {[%emt 00:00:25]}
15. Bg5 {[%clk 00:04:18]} {[%emt 00:00:23]} Bxb5 {[%clk 00:04:25]} {[%emt
00:00:11]} 16. cxb5 {[%clk 00:03:56]} {[%emt 00:00:24]} Ng4+ {[%clk 00:04:18]}
{[%emt 00:00:10]} 17. hxg4 {[%clk 00:03:56]} {[%emt 00:00:01]} Qxg5 {[%clk
00:04:18]} {[%emt 00:00:01]} 18. gxh5 {[%clk 00:03:56]} {[%emt 00:00:02]} Qxh5+
{[%clk 00:03:19]} {[%emt 00:01:02]} 19. Kg1 {[%clk 00:03:56]} {[%emt 00:00:01]}
Rac8 {[%clk 00:02:30]} {[%emt 00:00:52]} 20. Rad1 {[%clk 00:03:56]} {[%emt
00:00:02]} Be5 {[%clk 00:02:26]} {[%emt 00:00:07]} 21. Nd5 {[%clk 00:03:07]}
{[%emt 00:00:52]} c6 {[%clk 00:02:14]} {[%emt 00:00:15]} 22. Nb6 {[%clk
00:02:59]} {[%emt 00:00:11]} Rcd8 {[%clk 00:02:14]} {[%emt 00:00:03]} 23. bxc6
{[%clk 00:02:59]} {[%emt 00:00:04]} bxc6 {[%clk 00:02:14]} {[%emt 00:00:01]} 24.
Nc4 {[%clk 00:02:59]} {[%emt 00:00:02]} Ne6 {[%clk 00:02:07]} {[%emt 00:00:10]}
25. Nxe5 {[%clk 00:02:39]} {[%emt 00:00:23]} dxe5 {[%clk 00:02:06]} {[%emt
00:00:04]} 26. Rxd8 {[%clk 00:02:38]} {[%emt 00:00:04]} Rxd8 {[%clk 00:02:06]}
{[%emt 00:00:02]} 27. Qxc6 {[%clk 00:02:34]} {[%emt 00:00:07]} Rd2 {[%clk
00:01:29]} {[%emt 00:00:40]} 28. Qc8+ {[%clk 00:02:22]} {[%emt 00:00:15]} Kg7
{[%clk 00:01:18]} {[%emt 00:00:14]} 29. Qc3 {[%clk 00:02:22]} {[%emt 00:00:01]}
Qg5 {[%clk 00:00:59]} {[%emt 00:00:22]} 30. Qxa5 {[%clk 00:01:36]} {[%emt
00:00:49]} Rxb2 {[%clk 00:00:56]} {[%emt 00:00:06]} 31. f4 {[%clk 00:01:35]}
{[%emt 00:00:05]} Nxf4 {[%clk 00:00:48]} {[%emt 00:00:10]} 0-1

[Event "13 Open de Quenza"]
[Site "Quenza, France"]
[Date "2024.07.07"]
[Round "8.7"]
[White "Ternault, Mathieu"]
[Black "Geronimi, Jean-Thomas"]
[Result "1/2-1/2"]
[TimeControl "5min+3s/move"]
[WhiteElo "2332"]
[BlackElo "2065"]

1. d4 {[%clk 00:05:03]} {[%emt 00:00:02]} f5 {[%clk 00:05:03]} {[%emt
00:00:01]} 2. g3 {[%clk 00:05:03]} {[%emt 00:00:03]} Nf6 {[%clk 00:05:03]}
{[%emt 00:00:03]} 3. Bg2 {[%clk 00:05:03]} {[%emt 00:00:01]} g6 {[%clk
00:05:02]} {[%emt 00:00:04]} 4. c3 {[%clk 00:05:03]} {[%emt 00:00:01]} Bg7
{[%clk 00:05:02]} {[%emt 00:00:02]} 5. Nd2 {[%clk 00:05:03]} {[%emt 00:00:01]}
O-O {[%clk 00:05:01]} {[%emt 00:00:04]} 6. Qb3+ {[%clk 00:05:03]} {[%emt
00:00:01]} d5 {[%clk 00:04:54]} {[%emt 00:00:10]} 7. h4 {[%clk 00:05:03]}
{[%emt 00:00:01]} h6 {[%clk 00:04:29]} {[%emt 00:00:28]} 8. Nh3 {[%clk
00:05:03]} {[%emt 00:00:02]} e6 {[%clk 00:03:23]} {[%emt 00:01:09]} 9. Nf3
{[%clk 00:05:03]} {[%emt 00:00:03]} Ne4 {[%clk 00:03:01]} {[%emt 00:00:25]} 10.
Bf4 {[%clk 00:04:57]} {[%emt 00:00:09]} c5 {[%clk 00:02:44]} {[%emt 00:00:20]}
11. Be5 {[%clk 00:04:54]} {[%emt 00:00:06]} c4 {[%clk 00:02:21]} {[%emt
00:00:27]} 12. Qc2 {[%clk 00:04:47]} {[%emt 00:00:09]} Nc6 {[%clk 00:02:16]}
{[%emt 00:00:07]} 13. Nf4 {[%clk 00:04:43]} {[%emt 00:00:07]} Bxe5 {[%clk
00:01:40]} {[%emt 00:00:39]} 14. Nxe5 {[%clk 00:04:13]} {[%emt 00:00:33]} Nxe5
{[%clk 00:01:40]} {[%emt 00:00:02]} 15. dxe5 {[%clk 00:04:13]} {[%emt
00:00:01]} Kg7 {[%clk 00:01:17]} {[%emt 00:00:26]} 16. Bxe4 {[%clk 00:03:53]}
{[%emt 00:00:23]} fxe4 {[%clk 00:01:17]} {[%emt 00:00:01]} 17. e3 {[%clk
00:03:53]} {[%emt 00:00:02]} Qc7 {[%clk 00:01:06]} {[%emt 00:00:14]} 18. h5
{[%clk 00:03:53]} {[%emt 00:00:02]} g5 {[%clk 00:01:06]} {[%emt 00:00:01]} 19.
Ng6 {[%clk 00:03:53]} {[%emt 00:00:01]} Rf3 {[%clk 00:01:06]} {[%emt 00:00:03]}
20. Qa4 {[%clk 00:01:52]} {[%emt 00:02:04]} Bd7 {[%clk 00:00:30]} {[%emt
00:00:39]} 21. Qa3 {[%clk 00:01:52]} {[%emt 00:00:01]} Be8 {[%clk 00:00:29]}
{[%emt 00:00:03]} 22. O-O-O {[%clk 00:01:45]} {[%emt 00:00:10]} Bxg6 {[%clk
00:00:29]} {[%emt 00:00:03]} 23. hxg6 {[%clk 00:01:45]} {[%emt 00:00:01]} Rxf2
{[%clk 00:00:25]} {[%emt 00:00:07]} 24. Rdf1 {[%clk 00:01:42]} {[%emt
00:00:06]} Raf8 {[%clk 00:00:15]} {[%emt 00:00:14]} 25. Rxf2 {[%clk 00:01:42]}
Rxf2 {[%clk 00:00:15]} 26. Qxa7 {[%clk 00:01:42]} Kxg6 {[%clk 00:00:15]} {[%emt
00:00:04]} 27. Qa8 {[%clk 00:01:42]} Qf7 {[%clk 00:00:08]} {[%emt 00:00:09]} 28.
Rd1 {[%clk 00:01:11]} {[%emt 00:00:35]} Rf1 {[%clk 00:00:08]} {[%emt 00:00:01]}
29. Qa4 {[%clk 00:00:48]} {[%emt 00:00:25]} Rxd1+ {[%clk 00:00:04]} {[%emt
00:00:07]} 30. Qxd1 {[%clk 00:00:48]} {[%emt 00:00:01]} Qf2 {[%clk 00:00:04]}
31. Qg4 {[%clk 00:00:34]} {[%emt 00:00:17]} Qxe3+ {[%clk 00:00:04]} {[%emt
00:00:01]} 32. Kc2 {[%clk 00:00:34]} {[%emt 00:00:01]} Qd3+ {[%clk 00:00:04]}
33. Kc1 {[%clk 00:00:34]} Qf1+ {[%clk 00:00:04]} 34. Kc2 {[%clk 00:00:34]} Qf2+
{[%clk 00:00:04]} {[%emt 00:00:01]} 35. Kc1 {[%clk 00:00:34]} {[%emt 00:00:01]}
Qe3+ {[%clk 00:00:04]} 36. Kc2 {[%clk 00:00:34]} {[%emt 00:00:03]} Qf2+ {[%clk
00:00:04]} 37. Kc1 {[%clk 00:00:33]} {[%emt 00:00:38]} 1/2-1/2

[Event "13 Open de Quenza"]
[Site "Quenza, France"]
[Date "2024.07.07"]
[Round "8.8"]
[White "Dourerassou, Jonathan"]
[Black "De Seroux, Camille"]
[Result "1-0"]
[TimeControl "5min+3s/move"]
[WhiteElo "2422"]
[BlackElo "2113"]

1. e4 {[%clk 00:05:03]} {[%emt 00:00:01]} Nc6 {[%clk 00:05:03]} {[%emt
00:00:01]} 2. Nc3 {[%clk 00:05:03]} {[%emt 00:00:01]} e6 {[%clk 00:05:00]}
{[%emt 00:00:06]} 3. Bb5 {[%clk 00:05:03]} {[%emt 00:00:02]} Nd4 {[%clk
00:04:54]} {[%emt 00:00:08]} 4. Ba4 {[%clk 00:05:03]} {[%emt 00:00:03]} a6
{[%clk 00:04:48]} {[%emt 00:00:09]} 5. Nf3 {[%clk 00:05:03]} {[%emt 00:00:02]}
Bc5 {[%clk 00:04:39]} {[%emt 00:00:13]} 6. Nxd4 {[%clk 00:05:01]} {[%emt
00:00:05]} Bxd4 {[%clk 00:04:39]} {[%emt 00:00:01]} 7. Ne2 {[%clk 00:05:01]}
{[%emt 00:00:01]} Ba7 {[%clk 00:04:32]} {[%emt 00:00:10]} 8. d4 {[%clk
00:05:01]} {[%emt 00:00:02]} b5 {[%clk 00:04:26]} {[%emt 00:00:09]} 9. Bb3
{[%clk 00:05:01]} {[%emt 00:00:01]} Bb7 {[%clk 00:04:26]} {[%emt 00:00:03]} 10.
Ng3 {[%clk 00:05:00]} {[%emt 00:00:04]} Qh4 {[%clk 00:03:57]} {[%emt 00:00:31]}
11. Qd3 {[%clk 00:04:30]} {[%emt 00:00:32]} Nf6 {[%clk 00:03:44]} {[%emt
00:00:16]} 12. f3 {[%clk 00:04:30]} {[%emt 00:00:02]} c5 {[%clk 00:03:26]}
{[%emt 00:00:22]} 13. dxc5 {[%clk 00:04:30]} {[%emt 00:00:03]} Bxc5 {[%clk
00:03:25]} {[%emt 00:00:04]} 14. Be3 {[%clk 00:04:28]} {[%emt 00:00:05]} Bxe3
{[%clk 00:03:00]} {[%emt 00:00:29]} 15. Qxe3 {[%clk 00:04:28]} {[%emt
00:00:01]} O-O {[%clk 00:03:00]} {[%emt 00:00:03]} 16. O-O {[%clk 00:04:11]}
{[%emt 00:00:20]} d5 {[%clk 00:02:52]} {[%emt 00:00:11]} 17. e5 {[%clk
00:04:09]} {[%emt 00:00:05]} Nd7 {[%clk 00:02:39]} {[%emt 00:00:16]} 18. Rad1
{[%clk 00:04:09]} {[%emt 00:00:02]} Rac8 {[%clk 00:02:37]} {[%emt 00:00:06]} 19.
Rd4 {[%clk 00:04:05]} {[%emt 00:00:07]} Qe7 {[%clk 00:02:34]} {[%emt 00:00:06]}
20. c3 {[%clk 00:04:05]} {[%emt 00:00:03]} Nc5 {[%clk 00:02:06]} {[%emt
00:00:31]} 21. Bc2 {[%clk 00:04:04]} {[%emt 00:00:05]} f6 {[%clk 00:02:04]}
{[%emt 00:00:04]} 22. exf6 {[%clk 00:03:56]} {[%emt 00:00:11]} Rxf6 {[%clk
00:01:38]} {[%emt 00:00:29]} 23. Rh4 {[%clk 00:03:48]} {[%emt 00:00:11]} g6
{[%clk 00:01:19]} {[%emt 00:00:22]} 24. Rg4 {[%clk 00:03:30]} {[%emt 00:00:21]}
Nd7 {[%clk 00:00:57]} {[%emt 00:00:25]} 25. Nh5 {[%clk 00:03:01]} {[%emt
00:00:32]} Rf7 {[%clk 00:00:45]} {[%emt 00:00:16]} 26. Kh1 {[%clk 00:02:53]}
{[%emt 00:00:11]} Nf6 {[%clk 00:00:42]} {[%emt 00:00:06]} 27. Bxg6 {[%clk
00:02:35]} {[%emt 00:00:21]} hxg6 {[%clk 00:00:39]} {[%emt 00:00:06]} 28. Rxg6+
{[%clk 00:02:35]} {[%emt 00:00:01]} Kf8 {[%clk 00:00:34]} {[%emt 00:00:08]} 29.
Nxf6 {[%clk 00:02:22]} {[%emt 00:00:16]} Rxf6 {[%clk 00:00:34]} {[%emt
00:00:02]} 30. Qh6+ {[%clk 00:02:22]} {[%emt 00:00:01]} Ke8 {[%clk 00:00:34]}
{[%emt 00:00:03]} 31. Rxf6 {[%clk 00:02:21]} {[%emt 00:00:04]} Kd7 {[%clk
00:00:30]} {[%emt 00:00:06]} 32. Re1 {[%clk 00:02:21]} {[%emt 00:00:02]} Rc6
{[%clk 00:00:26]} {[%emt 00:00:08]} 33. Qg6 {[%clk 00:02:21]} {[%emt 00:00:03]}
1-0

[Event "13 Open de Quenza"]
[Site "Quenza, France"]
[Date "2024.07.07"]
[Round "8.9"]
[White "Utrera, Ludovic"]
[Black "Travadon, Loic"]
[Result "0-1"]
[TimeControl "5min+3s/move"]
[WhiteElo "2098"]
[BlackElo "2458"]

1. e4 {[%clk 00:05:03]} {[%emt 00:12:38]} c5 {[%clk 00:05:03]} {[%emt
00:00:04]} 2. Nc3 {[%clk 00:05:03]} {[%emt 00:00:01]} a6 {[%clk 00:05:03]}
{[%emt 00:00:02]} 3. Nge2 {[%clk 00:05:03]} {[%emt 00:00:04]} b5 {[%clk
00:05:01]} {[%emt 00:00:04]} 4. g3 {[%clk 00:05:03]} {[%emt 00:00:02]} Bb7
{[%clk 00:05:01]} {[%emt 00:00:01]} 5. Bg2 {[%clk 00:05:03]} {[%emt 00:00:01]}
g6 {[%clk 00:05:01]} {[%emt 00:00:03]} 6. O-O {[%clk 00:04:41]} {[%emt
00:00:25]} Bg7 {[%clk 00:05:01]} {[%emt 00:00:02]} 7. d4 {[%clk 00:04:33]}
{[%emt 00:00:12]} cxd4 {[%clk 00:05:01]} {[%emt 00:00:02]} 8. Nxd4 {[%clk
00:04:33]} {[%emt 00:00:01]} Nc6 {[%clk 00:05:01]} {[%emt 00:00:01]} 9. Be3
{[%clk 00:04:13]} {[%emt 00:00:23]} h5 {[%clk 00:04:59]} {[%emt 00:00:06]} 10.
Qd2 {[%clk 00:03:42]} {[%emt 00:00:34]} Nf6 {[%clk 00:04:58]} {[%emt 00:00:03]}
11. Nd5 {[%clk 00:03:21]} {[%emt 00:00:25]} Nxd5 {[%clk 00:04:57]} {[%emt
00:00:04]} 12. exd5 {[%clk 00:03:21]} {[%emt 00:00:02]} Ne5 {[%clk 00:04:56]}
{[%emt 00:00:03]} 13. b3 {[%clk 00:02:23]} {[%emt 00:01:01]} h4 {[%clk
00:04:51]} {[%emt 00:00:08]} 14. Rfe1 {[%clk 00:02:03]} {[%emt 00:00:23]} hxg3
{[%clk 00:04:51]} {[%emt 00:00:03]} 15. hxg3 {[%clk 00:02:03]} {[%emt
00:00:01]} Rc8 {[%clk 00:04:44]} {[%emt 00:00:09]} 16. Re2 {[%clk 00:01:54]}
{[%emt 00:00:13]} Kf8 {[%clk 00:04:41]} {[%emt 00:00:07]} 17. Rae1 {[%clk
00:01:53]} {[%emt 00:00:03]} d6 {[%clk 00:04:40]} {[%emt 00:00:04]} 18. Bg5
{[%clk 00:01:33]} {[%emt 00:00:23]} Qb6 {[%clk 00:04:33]} {[%emt 00:00:10]} 19.
c3 {[%clk 00:00:38]} {[%emt 00:00:59]} Qc5 {[%clk 00:04:33]} {[%emt 00:00:02]}
20. f4 {[%clk 00:00:33]} {[%emt 00:00:08]} Ng4 {[%clk 00:03:06]} {[%emt
00:01:30]} 21. Bxe7+ {[%clk 00:00:33]} {[%emt 00:00:02]} Kg8 {[%clk 00:03:06]}
22. Bg5 {[%clk 00:00:33]} {[%emt 00:00:01]} Qxc3 {[%clk 00:03:00]} {[%emt
00:00:09]} 23. Qxc3 {[%clk 00:00:26]} {[%emt 00:00:10]} Rxc3 {[%clk 00:03:00]}
{[%emt 00:00:01]} 24. Nc6 {[%emt 00:00:07]} Bxc6 {[%clk 00:02:59]} {[%emt
00:00:03]} 25. dxc6 {[%clk 00:00:24]} {[%emt 00:00:01]} Bd4+ {[%clk 00:02:59]}
{[%emt 00:00:01]} 26. Re3 {[%clk 00:00:10]} {[%emt 00:00:17]} Nxe3 {[%clk
00:02:55]} {[%emt 00:00:06]} 27. Bh4 {[%clk 00:00:00]} {[%emt 00:00:11]} Nxg2+
{[%clk 00:02:53]} {[%emt 00:00:05]} 28. Kxg2 {[%clk 00:00:00]} Rxc6 {[%clk
00:02:52]} {[%emt 00:00:03]} 0-1